Cogmind - Beta 16 @@@ ROGUE MODE // 2025.10.31 @ 19:36:32 Player: Stump Result: Destroyed by Y-54 Guardian with Gatling Laser Performance ------------- Evolutions (3) 1500 Regions Visited (5) 1000 Robots Destroyed (92) 460 Value Destroyed (2775) 2775 Prototype IDs (4) 80 Alien Tech Used (0) 0 Bonus (8) 8 TOTAL SCORE: 5823 Bonus ------- Follower Combat Kills 30 Friendly Fire -22 Cogmind --------- Core Integrity 0/700 Matter 272/300 Energy 98/100 System Corruption 10% Temperature Cool (18) Movement Core (50) Location -7/Factory Parts ------- > --- POWER (1) -------- (None) > --- PROPULSION (4) --- (None) > --- UTILITY (5) ------ (None) > --- WEAPON (3) ------- (None) > --- INVENTORY (5) ---- Titanium Leg VSS Leg Improved Carbon-fiber Leg Particle Charger Datajack Peak State ------------ > --- POWER ------------ Deuterium Engine > --- PROPULSION ------- Carbon-fiber Leg Titanium Leg Titanium Leg Improved Carbon-fiber Leg > --- UTILITY ---------- Improved Heat Sink Medium Storage Unit Signal Interpreter Hacking Suite Makeshift System Shield > --- WEAPON ----------- Heavy Particle Gun Heavy Ion Cannon Gauss Rifle > --- INVENTORY -------- Deuterium Engine Aluminum Leg Carbon-fiber Leg VSS Leg Improved Sensor Array Particle Charger Hacking Suite Plasma Cannon Minigun Datajack [Rating: 42] Favorites ----------- Power Deuterium Engine Engine Deuterium Engine Power Core Nuclear Core Propulsion Aluminum Leg Leg Aluminum Leg Utility Hacking Suite Device Improved Heat Sink Storage Medium Storage Unit Processor Signal Interpreter Hackware Hacking Suite Weapon Ion Cannon Energy Gun Pulse Rifle Energy Cannon Ion Cannon Ballistic Gun Autogun Ballistic Cannon Slug Cannon Special Weapon Remote Datajack Special Melee Weapon Datajack Build | -11 -10 -10 -10 -8 -7 ------- Run | Yrd Mat Min Sub Mat Fac Slots Evolved 6 | . . . . 4 2 Power . | . . . . . . Propulsion 2 | . . . . 2 . Utility 3 | . . . . 2 1 Weapon 1 | . . . . . 1 Parts Attached 66 | 6 14 1 4 26 15 Power 9 | 1 1 . 1 3 3 Engine 7 | 1 1 . 1 2 2 Core 2 | . . . . 1 1 Reactor . | . . . . . . Propulsion 22 | 2 3 . 3 10 4 Treads . | . . . . . . Leg 22 | 2 3 . 3 10 4 Wheel . | . . . . . . Hover . | . . . . . . Flight . | . . . . . . Utility 12 | 1 4 . . 6 1 Device 6 | . 1 . . 4 1 Storage 3 | 1 2 . . . . Processor 1 | . . . . 1 . Hackware 2 | . 1 . . 1 . Protection . | . . . . . . Artifact . | . . . . . . Weapon 23 | 2 6 1 . 7 7 Energy Gun 5 | . . . . 4 1 Energy Cannon 5 | . 1 . . 2 2 Ballistic Gun 9 | 2 3 . . 1 3 Ballistic Cannon 1 | . . 1 . . . Launcher . | . . . . . . Special Weapon 2 | . 1 . . . 1 Impact Weapon . | . . . . . . Slashing Weapon . | . . . . . . Piercing Weapon . | . . . . . . Special Melee Weapon 1 | . 1 . . . . Unidentified Prototypes 2 | . . . . 2 . Parts Lost 20 | . . . 4 1 15 Power 4 | . . . 1 1 2 Propulsion 9 | . . . 2 . 7 Utility 1 | . . . . . 1 Weapon 6 | . . . 1 . 5 Highest Loss Streak 6 | . . . 2 1 6 To Critical Strikes 1 | . . . . . 1 Average Backups 9 | 2 8 10 9 9 8 Power 1 | . 1 2 1 1 . Propulsion 2 | 1 3 4 3 1 2 Utility 2 | . 1 2 2 3 2 Weapon 1 | . 1 1 . 2 1 Tool/Special . | . . . . . . Unused Backups 11 | . 4 . . 5 2 Power 2 | . . . . 1 1 Propulsion 4 | . 4 . . . . Utility 1 | . . . . . 1 Weapon 4 | . . . . 4 . Tool/Special . | . . . . . . Average Slot Usage (%) 98 | . 99 100 99 99 91 Engine 9 | . 14 14 13 6 6 Core 1 | . . . . 2 . Leg 30 | . 28 28 27 35 26 Device 3 | . 1 . . 5 6 Storage 11 | . 16 14 14 9 6 Processor 2 | . . . . 3 6 Hackware 14 | . 9 14 14 17 14 Energy Gun 2 | . . . . 4 3 Energy Cannon 8 | . 9 14 6 7 8 Ballistic Gun 9 | . 15 14 12 4 5 Ballistic Cannon 1 | . . . 8 . . Special Melee Weapon 1 | . 3 . . . . Peak Build Rating 42 | 6 11 13 16 34 42 Average Rating 22 | 4 9 11 13 30 36 On Entrance 12 | . 6 11 11 16 31 Avg Prop Armor Cover (%) 5 | . . . . . 5 Naked Turns 52 | . . . . . 52 Heaviest Build 40 | 14 21 19 25 29 40 Greatest Support 67 | 20 20 20 25 66 67 Greatest Overweight (x) 4 | 4 1 . 1 . 1 Average Overweight (x) . | . . . . . . Largest Inventory Capacity 10 | 8 10 10 10 10 10 Average Capacity 9 | 7 8 10 10 10 9 Most Carried 10 | 6 10 10 10 10 10 Average Carried 9 | 2 8 9 9 9 8 Final Capacity 10 | 8 10 10 10 10 5 Final Carried 10 | 6 10 10 8 10 5 Class Distribution -------------------- 47% | Mutant 34% | Hacker-Mutant 8% | Hacker-Skirmisher 4% | Hacker-Gunner 3% | Scavenger-Mutant Dominant Class ---------------- Mutant | -10/Materials Mutant | -10/Mines Mutant | -10/Subcaves Hacker-Mutant | -8/Materials Hacker-Skirmisher | -7/Factory Resources | -11 -10 -10 -10 -8 -7 ----------- Run | Yrd Mat Min Sub Mat Fac Matter Collected 2129 | 208 410 31 272 739 469 Remotely . | . . . . . . Salvage Created 3134 | . 465 75 172 1269 1153 Parts 216 | . 47 3 20 83 63 Haulers Intercepted 3 | . . . . 3 . Recyclers Shooed 1 | . . . . . 1 Parts Field Recycled . | . . . . . . Retrieved Matter . | . . . . . . Parts Self-Destructed 23 | . . . 23 . . Prevented . | . . . . . . Parts Restored . | . . . . . . Kills | -11 -10 -10 -10 -8 -7 ------- Run | Yrd Mat Min Sub Mat Fac Combat Hostiles Destroyed 72 | . 13 2 11 28 18 Guns 27 | . 5 . 4 11 7 Cannons 42 | . 8 2 7 16 9 Classes Destroyed 15 | . 5 . 2 3 5 Worker 1 | . . . . . 1 Builder 3 | . . . . . 3 Tunneler 1 | . . . . 1 . Hauler 3 | . . . . 3 . Recycler 3 | . 1 . . . 2 Operator 2 | . 1 . . 1 . Watcher 7 | . 3 . . 3 1 Swarmer 25 | . 8 . 6 11 . Grunt 25 | . 5 2 . 9 9 Duelist 1 | . . . . . 1 Sentry 10 | . . . 1 7 2 Specialist 1 | . . . . . 1 Hunter 2 | . . . . 1 1 Programmer 4 | . . . . . 4 Subdweller 4 | . . . 4 . . Best Kill Streak 5 | . 5 2 3 4 4 Combat Bots Only 5 | . 5 2 3 4 3 Max Kills in Single Turn 2 | . 1 1 1 1 2 Gunslinging . | . . . . . . Exploded . | . . . . . . Melee . | . . . . . . Uniques/NPCs Destroyed . | . . . . . . Combat | -11 -10 -10 -10 -8 -7 -------- Run | Yrd Mat Min Sub Mat Fac Hostile Shots Fired 624 | . 48 2 72 132 370 Missed 208 | . 14 . 20 27 147 Hits 416 | . 34 2 52 105 223 Melee 3 | . . . . . 3 Projectile 413 | . 34 2 52 105 220 Critical Strikes 19 | . . . . 7 12 Damage Taken 5607 | . 298 30 796 1461 3022 Core 1107 | . 74 18 104 205 706 Absorbed by Shields . | . . . . . . Regen/Repaired (Parts) 475 | . . . . 375 100 Core Remaining (%) 61 | 100 . . 21 62 . Volleys Fired 250 | . 37 3 42 104 64 Largest 3 | . 2 2 2 2 3 Hottest 173 | . 83 83 100 123 173 Shots Fired 547 | . 72 6 81 208 180 Gun 271 | . 35 3 32 108 93 Cannon 272 | . 35 3 49 100 85 Launcher . | . . . . . . Special 4 | . 2 . . . 2 Kinetic 213 | . 35 3 67 47 61 Thermal 315 | . 37 3 14 145 116 Explosive . | . . . . . . Electromagnetic 17 | . . . . 16 1 Robot Hit Streak 18 | . 7 3 9 18 17 Robot Miss Streak 5 | . 3 1 5 3 4 Penetration Max 1 | . . . . . 1 Secondary Targets . | . . . . . . Shots Hit Robots 350 | . 44 3 44 143 116 Core Hits 133 | . 22 4 13 52 42 Critical Kills 4 | . . . 2 . 2 Critical Parts Destroyed 2 | . . . . . 2 Critical Strikes 15 | . . . 6 2 7 Burn 5 | . . . . 2 3 Meltdown 1 | . . . . . 1 Destroy 9 | . . . 6 . 3 Melee Attacks 17 | . 10 . 3 2 2 Impact . | . . . . . . Slashing . | . . . . . . Piercing . | . . . . . . Sneak Attacks 9 | . 7 . . . 2 Combat Hostiles . | . . . . . . Follow-up Attacks . | . . . . . . Damage Inflicted 7256 | . 545 84 908 2936 2783 Guns 2976 | . 209 18 238 1375 1136 Cannons 4166 | . 335 34 670 1553 1574 Explosions 43 | . . . . . 43 Melee . | . . . . . . Ramming 71 | . 1 32 . 8 30 Kinetic 2172 | . 209 18 767 447 731 Thermal 4747 | . 335 34 141 2258 1979 Explosive . | . . . . . . Electromagnetic 266 | . . . . 223 43 Impact . | . . . . . . Slashing . | . . . . . . Piercing . | . . . . . . Highest Corruption 10 | . . . . 1 10 Average Corruption 2 | . . . . 1 3 Corruption Purged . | . . . . . . Corruption Blocked . | . . . . . . Effects 22 | . . . . 6 16 Message Errors 8 | . . . . 3 5 Matter Fused 6 | . . . . 3 3 Heat Flow Errors 3 | . . . . . 3 Energy Discharges 1 | . . . . . 1 Data Loss (minor) 2 | . . . . . 2 Weapon Failures 2 | . . . . . 2 Overload Shots . | . . . . . . Overflow Damage 84 | . . . 3 . 81 Projectiles 84 | . . . 3 . 81 Explosions . | . . . . . . Melee . | . . . . . . Knockbacks 2 | . . . 2 . . Impact . | . . . . . . Kinetic 2 | . . . 2 . . Secondary . | . . . . . . Self-Inflicted Damage 60 | . . . . . 60 Shots 2 | . . . . . 2 Rammed . | . . . . . . Targets Rammed 12 | . 1 3 . 3 5 Kicked 12 | . 1 3 . 3 5 Crushed . | . . . . . . Highest Temperature 367 | . 150 101 13 367 359 Average Temperature 92 | . 51 53 4 83 131 Received Heat Transfer 1638 | . 63 15 60 684 816 Effects 5 | . . . . 2 3 Interference 5 | . . . . 2 3 Siege Activations . | . . . . . . Martial Activations . | . . . . . . Shielding Activations . | . . . . . . Robots Disrupted . | . . . . . . Combat Hostiles . | . . . . . . Robots Corrupted . | . . . . . . Combat Hostiles . | . . . . . . Parts Fried . | . . . . . . Impact Corruptions . | . . . . . . Robots Melted 3 | . . . . 1 2 Combat Hostiles 3 | . . . . 1 2 Parts Melted 15 | . . . 1 7 7 Heat Transferred 8541 | . 703 74 296 4144 3324 Parts Sabotaged . | . . . . . . Parts Stolen . | . . . . . . Parts Stripped . | . . . . . . Power Chain Reactions . | . . . . . . Alert | -11 -10 -10 -10 -8 -7 ------- Run | Yrd Mat Min Sub Mat Fac Maximum Alert Level 1 | . . . . 1 1 Low Security (%) 65 | 100 100 100 . 48 30 Level 1 34 | . . . . 51 69 Level 2 . | . . . . . . Level 3 . | . . . . . . Level 4 . | . . . . . . Level 5 . | . . . . . . High Security . | . . . . . . Max Security . | . . . . . . Peak Influence 378 | . 163 52 . 342 378 Initial 132 | . . 52 . 12 132 Average 139 | . 76 11 . 178 229 Influence Increases 2297 | . 452 50 182 888 725 Destroy 0b10 Robot/C 1360 | . 260 40 140 560 360 Destroy 0b10 Robot/NC 100 | . 25 . . 40 35 Destroy Leader 290 | . 56 10 10 132 82 Allied During Kill 2 | . . . 2 . . Trap Triggered on 0b10 10 | . 10 . . . . Successful Hack 49 | . 10 . . 25 14 Disable Machine 135 | . 45 . . 45 45 Destroy Structure 21 | . 1 . . 11 9 Partial Spotted 15 | . . . . 15 . Lose Combat Pursuer 315 | . 45 . 30 60 180 Influence Decreases 2012 | . 317 183 160 621 731 Entered New Map 256 | . . 83 2 12 159 Time Decay 1579 | . 317 100 138 602 422 Lost Part 177 | . . . 20 7 150 Squads Dispatched 11 | . 3 . . 2 6 Investigation 3 | . 1 . . 1 1 Extermination 3 | . . . . . 3 Reinforcement 4 | . 2 . . . 2 Assault . | . . . . . . Garrison 1 | . . . . 1 . Intercept . | . . . . . . Searches Triggered . | . . . . . . Construction Impeded . | . . . . . . Haulers Reinforced . | . . . . . . Active Scanning Responses . | . . . . . . Cargo Convoy Interrupts 1 | . . . . . 1 Stealth | -11 -10 -10 -10 -8 -7 --------- Run | Yrd Mat Min Sub Mat Fac Distress Signals 5 | . 1 . . 2 2 Communications Jammed . | . . . . . . Distress Signals . | . . . . . . Times Spotted 134 | . 24 2 16 40 52 Peak Tracking Total 10 | . 4 2 6 4 10 Tactical Retreats 15 | . 3 . 1 4 7 Traps | -11 -10 -10 -10 -8 -7 ------- Run | Yrd Mat Min Sub Mat Fac Traps Triggered 3 | . 1 . . 2 . Indirectly . | . . . . . . Trap Hack Attempts 9 | . 9 . . . . Triggered . | . . . . . . Disarmed 2 | . 2 . . . . Reprogrammed 1 | . 1 . . . . Reused 1 | . 1 . . . . Traps Extracted . | . . . . . . Installed . | . . . . . . Triggered 1 | . 1 . . . . Machines | -11 -10 -10 -10 -8 -7 ---------- Run | Yrd Mat Min Sub Mat Fac Machines Disabled 9 | . 3 . . 3 3 Max in Single Turn 2 | . 1 . . 1 2 Machines Repaired . | . . . . . . Machines Dismantled . | . . . . . . Machines Sabotaged . | . . . . . . Overloaded Fab Kills . | . . . . . . Hacking | -11 -10 -10 -10 -8 -7 --------- Run | Yrd Mat Min Sub Mat Fac Machines Accessed 26 | . 9 . 1 13 3 Terminals 18 | . 7 . . 9 2 Fabricators . | . . . . . . Repair Stations 3 | . . . . 2 1 Recycling Units 3 | . 2 . . 1 . Scanalyzers 1 | . . . . 1 . Garrison Access . | . . . . . . Total Hacks 91 | . 22 . 4 54 11 Successful 49 | . 7 . 4 33 5 Failed 41 | . 15 . . 20 6 Catastrophic 7 | . 4 . . 2 1 Database Lockouts 1 | . . . . 1 . Manual 30 | . 9 . 2 15 4 Terminals 58 | . 16 . . 36 6 Fabricators . | . . . . . . Repair Stations 13 | . . . . 8 5 Recycling Units 9 | . 6 . . 3 . Scanalyzers 7 | . . . . 7 . Garrison Access . | . . . . . . Terminal Hacks 28 | . 4 . 4 17 3 Record 10 | . . . 4 5 1 Prototype ID Bank 1 | . . . . 1 . Open DSF 1 | . . . . . 1 Emergency Access Points 3 | . 1 . . 2 . Locate Traps 1 | . . . . 1 . Dispatch Records 1 | . . . . 1 . Maintenance Status 1 | . . . . 1 . Transport Status 1 | . 1 . . . . Hauler Manifests 2 | . 1 . . 1 . Registered Components 1 | . . . . 1 . Zone Layout 6 | . 1 . . 4 1 Fabricator Hacks . | . . . . . . Repair Station Hacks 10 | . . . . 8 2 Scan Component 5 | . . . . 4 1 Repair 5 | . . . . 4 1 Recycling Unit Hacks 5 | . 3 . . 2 . Process 1 | . 1 . . . . Report Inventory 3 | . 2 . . 1 . Retrieve Components 1 | . . . . 1 . Scanalyzer 6 | . . . . 6 . Insert Component 3 | . . . . 3 . Analyze 3 | . . . . 3 . Garrison Access Hacks . | . . . . . . Unauthorized Hacks . | . . . . . . Terminals . | . . . . . . Fabricators . | . . . . . . Repair Stations . | . . . . . . Recycling Units . | . . . . . . Scanalyzers . | . . . . . . Garrison Access . | . . . . . . Data Cores Recovered 2 | . 1 . . 1 . Used . | . . . . . . Hacking Detections 24 | . 9 . . 12 3 Full Trace Events 2 | . 1 . . . 1 Feedback Events . | . . . . . . Feedback Blocked . | . . . . . . Robot Schematics Acquired . | . . . . . . Robots Built . | . . . . . . Authchips . | . . . . . . Time . | . . . . . . Total Robot Build Rating . | . . . . . . Part Schematics Acquired 3 | . . . . 3 . Parts Built . | . . . . . . Authchips . | . . . . . . Time . | . . . . . . Total Part Build Rating . | . . . . . . Part Studies Acquired . | . . . . . . Parts Repaired 5 | . . . . 4 1 Time 171 | . . . . 152 19 Parts Recycled . | . . . . . . Recycled Matter 1 | . 1 . . . . Retrieved Matter . | . . . . . . Retrieved Components 6 | . . . . 6 . Parts Scanalyzed 3 | . . . . 3 . Part Schematics Acquired 3 | . . . . 3 . Parts Damaged . | . . . . . . Bothacking | -11 -10 -10 -10 -8 -7 ------------ Run | Yrd Mat Min Sub Mat Fac Used RIF Installer . | . . . . . . Robots Hacked 6 | . 5 . . . 1 Non-combat 4 | . 3 . . . 1 Combat 2 | . 2 . . . . Robot Hacks Applied 10 | . 8 . . . 2 parse_system 4 | . 4 . . . . no_distress 3 | . 2 . . . 1 find_recycling 1 | . 1 . . . . check_alert 2 | . 1 . . . 1 Relay Couplers Released . | . . . . . . Fabnet Peak Effective % . | . . . . . . Robots Rewired . | . . . . . . Allies Hacked . | . . . . . . Hacks Repelled . | . . . . . . Allies | -11 -10 -10 -10 -8 -7 -------- Run | Yrd Mat Min Sub Mat Fac Total Allies 2 | . . 2 . . . Largest Group 2 | . . 2 2 . . Highest-Rated Group 58 | . . 58 58 . . Highest-Rated Ally 31 | . . 31 31 . . Total Orders . | . . . . . . Ally Attacks 18 | . . . 18 . . Total Damage 233 | . . . 233 . . Kills 1 | . . . 1 . . Allies Corrupted . | . . . . . . Allies Melted . | . . . . . . Intel | -11 -10 -10 -10 -8 -7 ------- Run | Yrd Mat Min Sub Mat Fac Active Infowar (turns) 1207 | . 183 . . 566 458 Sensors 967 | . . . . 509 458 Seismic 240 | . 183 . . 57 . Robot Analysis Total . | . . . . . . Derelict Logs Recovered 2 | . . 2 . . . Drone Launches . | . . . . . . Drone Recoveries . | . . . . . . Exploration | -11 -10 -10 -10 -8 -7 ------------- Run | Yrd Mat Min Sub Mat Fac Turns Passed 5678 | 86 1360 569 628 1999 1036 Spaces Moved 3388 | 54 828 452 393 1062 599 Core 120 | 13 . . . . 107 Treads . | . . . . . . Legs 3268 | 41 828 452 393 1062 492 Wheels . | . . . . . . Hover . | . . . . . . Flight . | . . . . . . Fastest Speed 50 | 50 120 120 120 115 50 Average Speed 118 | 127 124 120 121 118 108 Slowest Speed 250 | 250 190 120 190 127 190 Overloaded Moves . | . . . . . . Propulsion Burnouts . | . . . . . . Robots Hopped . | . . . . . . Potential Cave-ins . | . . . . . . Cave-ins Triggered . | . . . . . . Exploration Rate (%) 53 | 4 95 77 36 85 22 Regions Visited 5 Branch Regions 2 Pre-discovered Areas 1 | . . 1 . . . Known Exits Taken 1 | . . . . 1 . Unknown Exits Taken 4 | 1 1 1 1 . . Scrap Searched 1 | . . 1 . . . Spaces Dug . | . . . . . . Terrain Destroyed 19 | . . . 9 6 4 Melee . | . . . . . . Projectile 19 | . . . 9 6 4 AOE . | . . . . . . Terrain Rammed . | . . . . . . Walls Destroyed . | . . . . . . Machines Disabled . | . . . . . . Actions | -11 -10 -10 -10 -8 -7 --------- Run | Yrd Mat Min Sub Mat Fac Total 4529 | 71 1075 472 467 1602 842 Wait 637 | . 139 11 18 344 125 Move 3383 | 53 827 451 392 1061 599 Hop . | . . . . . . Pick Up 64 | 12 14 1 3 24 10 Fast Attach 8 | . 2 . . 4 2 Attach 27 | 6 2 . 4 5 10 Detach . | . . . . . . Swap 76 | . 21 2 4 31 18 Drop 46 | . 13 1 1 24 7 Fire 250 | . 37 3 42 104 64 Melee 17 | . 10 . 3 2 2 Ram . | . . . . . . Kick 12 | . 1 3 . 3 5 Crush . | . . . . . . Escape Stasis . | . . . . . . Rewire . | . . . . . . Trap 9 | . 9 . . . . Miscellaneous . | . . . . . . Route ------- -11/Scrapyard -10/Materials (discovered 5 exits: [*Mat x3] / [*Min x2]) -10/Mines (discovered 3 exits: [*Mat x2] / *Sub) -10/Subcaves (discovered 2 exits: *Mat / [*Rec]) -8/Materials (discovered 4 exits: *Fac x3 / Sto) -7/Factory (discovered 1 exit: [*Low]) History --------- Turn | Location | Event 22 | -11/Scrapyard | Discovered new exit (range 16) 87 | -11/Scrapyard | Entered Materials 330 | -10/Materials | Build established: Mutant 509 | -10/Materials | Discovered new exit (range 12) 525 | -10/Materials | Discovered new exit (range 16) 662 | -10/Materials | Discovered new exit (range 7) 927 | -10/Materials | Discovered new exit (range 16) 1149 | -10/Materials | Discovered new exit (range 8) 1447 | -10/Materials | Entered Mines 1534 | -10/Mines | Received a Rocket Launcher from a helpful Derelict 1659 | -10/Mines | A weapon hastily lodged in a ceiling crevice suddenly fell to the ground 1718 | -10/Mines | Discovered new exit (range 14) 1872 | -10/Mines | Learned location of Zion (-6) 1883 | -10/Mines | Discovered new exit (range 9) 2003 | -10/Mines | Discovered new exit (range 12) 2016 | -10/Mines | Entered Subcaves 2016 | -10/Subcaves | Accompanied by 2 allies 2017 | -10/Subcaves | Approached by a straggling Scientist 2021 | -10/Subcaves | Led the pair of lost Derelicts to an unsafe place 2298 | -10/Subcaves | Core integrity fell below 50% 2373 | -10/Subcaves | Discovered new exit (range 15) 2484 | -10/Subcaves | Visited Clippyterm 2488 | -10/Subcaves | Learned Factory emergency access door positions 2634 | -10/Subcaves | Discovered new exit (range 9) 2644 | -10/Subcaves | Entered Materials 2644 | -8/Materials | Evolved 4 slots: Propulsion x2, Utility x2 2645 | -8/Materials | Identified exit to Storage 2931 | -8/Materials | Build established: Hacker-Mutant 3194 | -8/Materials | Repaired Carbon-fiber Leg 3351 | -8/Materials | Repaired Ion Cannon 3535 | -8/Materials | Central database locked down 3834 | -8/Materials | Discovered new exit (range 6) 3842 | -8/Materials | Identified exit to Factory 4312 | -8/Materials | Repaired Carbon-fiber Leg 4351 | -8/Materials | Repaired VSS Leg 4365 | -8/Materials | Discovered exit to Factory (range 7) 4587 | -8/Materials | Discovered exit to Factory (range 16) 4626 | -8/Materials | Garrison activated, responded to threat 4643 | -8/Materials | Entered Factory 4643 | -7/Factory | Evolved 2 slots: Utility x1, Weapon x1 4758 | -7/Factory | Repaired Minigun 5507 | -7/Factory | Cargo convoy interrupted 5536 | -7/Factory | Core integrity fell below 50% 5585 | -7/Factory | Lost 6 parts (1p1n4w) 5621 | -7/Factory | Released all parts (6) 5623 | -7/Factory | Core integrity fell below 20% 5651 | -7/Factory | Lost 4 parts (3n1u) 5677 | -7/Factory | Discovered new exit (range 9) 5678 | -7/Factory | System corruption reached 10% 5679 | -7/Factory | Destroyed by Y-54 Guardian with Gatling Laser Last Messages --------------- 05619_ Penetrated by Slug. 05619_ Critical hit (Destroy). 05619_ Aluminum Leg destroyed. 05620_ Carbon-fiber Leg destroyed. 05621_ Released Remote Datajack. 05621_ Released Mic. Nuclear Core. 05621_ Released Signal Interpreter. 05621_ Released Hacking Suite. 05621_ Released Med. Storage Unit. 05621_ Released Imp. Cooling System. [Achievement: Live, Flee, And Rebuild] 05622_ Penetrated by Slug. 05642_ System corrupted: Heat flow error (+157). 05650_ Acquired Arc Projector. 05654_ K-01 Serf cleans the Fusion Modulator. 05656_ Dropped Arc Projector. 05656_ P-60 Hacker resets P-60 Hacker, system corruption cleaned. 05671_ W9